fUST/lending_fUST_20250605
["ID","MTS","AMOUNT","RATE_DAILY","PERIOD"]
[364345988,1749076235324,-440.0,0.00017996,2]
[364345989,1749076235333,-440.0,0.00017996,2]
[364345990,1749076235343,-430.0,0.00017996,2]
[364345991,1749076235352,-430.0,0.00017996,2]
[364345992,1749076235362,-440.0,0.00017996,2]
[364345993,1749076235371,-430.0,0.00017996,2]
[364345994,1749076235381,-440.0,0.00017996,2]
[364345995,1749076235390,-440.0,0.00017996,2]
[364345996,1749076235401,-440.0,0.00017996,2]
[364345997,1749076235412,-440.0,0.00017996,2]
[364345998,1749076235422,-586.88334488,0.00017996,2]
[364345999,1749076235431,-440.0,0.00017996,2]
[364346000,1749076235441,-440.0,0.00017996,2]
[364346001,1749076235450,-1239.94,0.00017996,2]
[364346002,1749076235460,-188.72126539,0.00017996,2]
[364346003,1749076235469,-440.0,0.00017996,2]
[364346004,1749076235478,-430.0,0.00017996,2]
[364346005,1749076235489,-440.0,0.00017996,2]
[364346006,1749076235500,-430.0,0.00017996,2]
[364346007,1749076235510,-430.0,0.00017996,2]
[364346008,1749076235519,-174.30874281,0.00017997,2]
[364346009,1749076235529,-430.0,0.00017997,2]
[364346010,1749076235539,-400.0,0.00017997,2]
[364346011,1749076235549,-430.0,0.00017997,2]
[364346012,1749076235559,-430.0,0.00017997,2]
[364346013,1749076235570,-430.0,0.00017997,2]
[364346014,1749076235581,-450.0,0.00017997,2]
[364346015,1749076235592,-450.0,0.00017997,2]
[364346016,1749076235602,-363.43963406,0.00017997,2]
[364346017,1749076235612,-430.0,0.00017997,2]
[364346018,1749076235621,-430.0,0.00017997,2]
[364346019,1749076235631,-430.0,0.00017997,2]
[364346020,1749076235641,-400.0,0.00017997,2]
[364346021,1749076235650,-400.0,0.00017997,2]
[364346022,1749076235659,-456.53913042,0.00017997,2]
[364346023,1749076235669,-440.0,0.00017997,2]
[364346024,1749076235679,-440.0,0.00017997,2]
[364346025,1749076235690,-430.0,0.00017997,2]
[364346026,1749076235700,-430.0,0.00017997,2]
[364346027,1749076235709,-430.0,0.00017997,2]
[364346028,1749076235725,-213.2477313,0.00017997,2]
[364346029,1749076235734,-339.183922,0.00017997,2]
[364346030,1749076235744,-475.47524009,0.00017997,2]
[364346031,1749076235754,-39271.52649037,0.00018,2]
[364346032,1749076235764,-18994.41223754,0.00018,2]
[364346033,1749076235775,-1459.99587772,0.00018141,2]
[364346034,1749076235784,-209.54,0.00018163,2]
[364346035,1749076235794,-440.0,0.00018163,2]
[364346036,1749076235805,-626.75,0.00018163,2]
[364346037,1749076235814,-440.0,0.00018163,2]
[364346038,1749076235824,-270.84,0.00018166,2]
[364346039,1749076235833,-458.16,0.00018166,2]
[364346040,1749076235843,-797.89,0.00018166,2]
[364346041,1749076235853,-440.0,0.00018166,2]
[364346042,1749076235864,-440.0,0.00018166,2]
[364346043,1749076235874,-643.23,0.00018166,2]
[364346044,1749076235884,-440.0,0.00018166,2]
[364346045,1749076235894,-985.04,0.00018167,2]
[364346046,1749076235905,-440.0,0.00018167,2]
[364346047,1749076235915,-407.21,0.00018169,2]
[364346048,1749076235924,-410.0,0.00018169,2]
[364346049,1749076235933,-440.0,0.00018169,2]
[364346050,1749076235944,-456.11,0.00018169,2]
[364346051,1749076235953,-440.0,0.00018169,2]
[364346052,1749076235964,-440.0,0.00018169,2]
[364346053,1749076235973,-440.0,0.00018169,2]
[364346054,1749076235983,-440.0,0.00018169,2]
[364346055,1749076235992,-440.0,0.00018169,2]
[364346056,1749076236002,-863.56,0.00018171,2]
[364346057,1749076236012,-440.0,0.00018171,2]
[364346058,1749076236021,-440.0,0.00018171,2]
[364346059,1749076236030,-440.0,0.00018171,2]
[364346060,1749076236040,-468.0,0.00018171,2]
[364346061,1749076236049,-360.92,0.00018171,2]
[364346062,1749076236061,-400.0,0.00018269,2]
[364346063,1749076236072,-410.0,0.00018269,2]
[364346064,1749076236083,-410.0,0.00018269,2]
[364346065,1749076236094,-410.0,0.00018269,2]
[364346066,1749076236104,-232.5849442,0.00018269,2]
[364346067,1749076236114,-410.0,0.00018269,2]
[364346068,1749076236123,-288.81223921,0.00018269,2]
[364346069,1749076236133,-410.0,0.00018269,2]
[364346070,1749076236142,-430.0,0.00018269,2]
[364346071,1749076236151,-440.0,0.00018269,2]
[364346072,1749076236161,-440.0,0.00018269,2]
[364346073,1749076236171,-440.0,0.00018269,2]
[364346074,1749076236180,-490.0,0.00018269,2]
[364346075,1749076236190,-440.0,0.00018269,2]
[364346076,1749076236199,-440.0,0.00018269,2]
[364346077,1749076236209,-470.0,0.00018269,2]
[364346078,1749076236218,-410.0,0.00018269,2]
[364346079,1749076236227,-410.0,0.00018269,2]
[364346080,1749076236236,-440.0,0.0001827,2]
[364346081,1749076236246,-440.0,0.0001827,2]
[364346082,1749076236257,-430.0,0.0001827,2]
[364346083,1749076236267,-440.0,0.0001827,2]
[364346084,1749076236278,-430.0,0.0001827,2]
[364346085,1749076236288,-430.0,0.0001827,2]
[364346086,1749076236298,-440.0,0.0001827,2]
[364346087,1749076236307,-430.0,0.0001827,2]
[364346088,1749076236316,-440.0,0.0001827,2]
[364346089,1749076236325,-440.0,0.0001827,2]
[364346090,1749076236336,-430.0,0.0001827,2]
[364346091,1749076236346,-430.0,0.0001827,2]
[364346092,1749076236356,-440.0,0.0001827,2]
[364346093,1749076236366,-420.0,0.0001827,2]
[364346094,1749076236376,-440.0,0.0001827,2]
[364346095,1749076236388,-440.0,0.0001827,2]
[364346096,1749076236398,-430.0,0.0001827,2]
[364346097,1749076236408,-430.0,0.0001827,2]
[364346098,1749076236417,-1239.94,0.0001827,2]
[364346099,1749076236427,-440.0,0.0001827,2]
[364346100,1749076236436,-430.0,0.0001827,2]
[364346101,1749076236445,-410.0,0.00018271,2]
[364346102,1749076236458,-420.0,0.00018271,2]
[364346103,1749076236469,-1459.99587772,0.00018383,2]
[364346104,1749076236480,-440.0,0.00018437,2]
[364346105,1749076236492,-626.75,0.00018437,2]
[364346106,1749076236502,-440.0,0.00018437,2]
[364346107,1749076236511,-458.16,0.0001844,2]
[364346108,1749076236520,-797.89,0.0001844,2]
[364346109,1749076236529,-440.0,0.0001844,2]
[364346110,1749076236540,-643.23,0.0001844,2]
[364346111,1749076236551,-440.0,0.0001844,2]
[364346112,1749076236561,-985.04,0.00018441,2]
[364346113,1749076236571,-440.0,0.00018441,2]
[364346114,1749076236581,-576.43,0.00018443,2]
[364346115,1749076236590,-456.11,0.00018443,2]
[364346116,1749076236599,-440.0,0.00018443,2]
[364346117,1749076236609,-440.0,0.00018443,2]
[364346118,1749076236619,-863.56,0.00018445,2]
[364346119,1749076236628,-440.0,0.00018445,2]
[364346120,1749076236637,-440.0,0.00018445,2]
[364346121,1749076236646,-468.0,0.00018445,2]
[364346122,1749076236655,-229.80585427,0.00018521,2]
[364346123,1749076236665,-440.0,0.00018543,2]
[364346124,1749076236674,-420.0,0.00018543,2]
[364346125,1749076236684,-440.0,0.00018543,2]
[364346126,1749076236693,-440.0,0.00018544,2]
[364346127,1749076236703,-440.0,0.00018544,2]
[364346128,1749076236712,-440.0,0.00018544,2]
[364346129,1749076236721,-440.0,0.00018544,2]
[364346130,1749076236731,-440.0,0.00018544,2]
[364346131,1749076236740,-440.0,0.00018544,2]
[364346132,1749076236749,-440.0,0.00018544,2]
[364346133,1749076236759,-440.0,0.00018544,2]
[364346134,1749076236768,-440.0,0.00018544,2]
[364346135,1749076236777,-1239.94,0.00018544,2]
[364346136,1749076236891,-440.0,0.00018544,2]
[364346137,1749076236901,-1459.99587772,0.00018624,2]
[364346138,1749076236910,-440.0,0.00018711,2]
[364346139,1749076236920,-626.75,0.00018711,2]
[364346140,1749076236929,-440.0,0.00018711,2]
[364346141,1749076236939,-458.16,0.00018714,2]
[364346142,1749076236948,-797.89,0.00018714,2]
[364346143,1749076236958,-440.0,0.00018714,2]
[364346144,1749076236968,-643.23,0.00018714,2]
[364346145,1749076236977,-440.0,0.00018714,2]
[364346146,1749076236987,-985.04,0.00018715,2]
[364346147,1749076236996,-440.0,0.00018715,2]
[364346148,1749076237006,-456.11,0.00018717,2]
[364346149,1749076237015,-440.0,0.00018717,2]
[364346150,1749076237024,-440.0,0.00018717,2]
[364346151,1749076237034,-863.56,0.00018719,2]
[364346152,1749076237043,-440.0,0.00018719,2]
[364346153,1749076237056,-440.0,0.00018719,2]
[364346154,1749076237065,-468.0,0.00018719,2]
[364346155,1749076237074,-440.0,0.00018817,2]
[364346156,1749076237084,-440.0,0.00018817,2]
[364346157,1749076237093,-440.0,0.00018818,2]
[364346158,1749076237103,-177.26,0.00018818,2]
[364346159,1749076237112,-440.0,0.00018818,2]
[364346160,1749076237121,-287.8,0.00018818,2]
[364346161,1749076237131,-440.0,0.00018818,2]
[364346162,1749076237141,-160.78,0.00018818,2]
[364346163,1749076237150,-440.0,0.00018818,2]
[364346164,1749076237160,-1239.94,0.00018818,2]
[364346165,1749076237169,-440.0,0.00018818,2]
[364346166,1749076237179,-1459.99587772,0.00018866,2]
[364346167,1749076237188,-440.0,0.00018985,2]
[364346168,1749076237198,-626.75,0.00018985,2]
[364346169,1749076237207,-478.01880927,0.00018985,2]
[364346170,1749076237217,-458.16,0.00018988,2]
[364346171,1749076237227,-797.89,0.00018988,2]
[364346172,1749076237236,-440.0,0.00018988,2]
[364346173,1749076237246,-643.23,0.00018988,2]
[364346174,1749076237255,-440.0,0.00018988,2]
[364346175,1749076237265,-985.04,0.00018989,2]
[364346176,1749076237275,-440.0,0.00018989,2]
[364346177,1749076237284,-456.11,0.00018991,2]
[364346178,1749076237294,-442.89,0.00018991,2]
[364346179,1749076237306,-440.0,0.00018991,2]
[364346180,1749076237315,-863.56,0.00018993,2]
[364346181,1749076237325,-447.53278646,0.00018993,2]
[364346182,1749076237334,-440.0,0.00018993,2]
[364346183,1749076237345,-468.0,0.00018993,2]
[364346184,1749076237356,-771.22973359,0.00019011,2]
[364346186,1749076237366,-440.0,0.00019091,2]
[364346187,1749076237376,-440.0,0.00019091,2]
[364346188,1749076237385,-398.77,0.00019092,2]
[364346189,1749076237395,-394.84,0.00019092,2]
[364346190,1749076237406,-440.0,0.00019092,2]
[364346191,1749076237416,-440.0,0.00019092,2]
[364346192,1749076237425,-1239.94,0.00019092,2]
[364346193,1749076237435,-440.0,0.00019092,2]
[364346194,1749076237444,-1459.99587772,0.00019107,2]
[364346195,1749076237454,-278.71012717,0.00019147,2]
[364346197,1749076237463,-350.0,0.0001922,2]
[364346198,1749076237474,-440.0,0.00019259,2]
[364346199,1749076237485,-626.75,0.00019259,2]
[364346200,1749076237499,-458.16,0.00019262,2]
[364346201,1749076237508,-797.89,0.00019262,2]
[364346202,1749076237518,-440.0,0.00019262,2]
[364346203,1749076237529,-643.23,0.00019262,2]
[364346205,1749076237538,-440.0,0.00019262,2]
[364346206,1749076237548,-985.04,0.00019263,2]
[364346207,1749076237557,-440.0,0.00019263,2]
[364346208,1749076237568,-456.11,0.00019265,2]
[364346209,1749076237578,-392.34542414,0.00019265,2]
[364346211,1749076237587,-863.56,0.00019267,2]
[364346212,1749076237595,-440.0,0.00019267,2]
[364346214,1749076237605,-468.0,0.00019267,2]
[364346216,1749076237614,-1459.99587772,0.00019348,2]
[364346218,1749076237623,-2183.16,0.00019356,3]
[364346220,1749076237632,-1091.58,0.00019356,3]
[364346222,1749076237642,-545.78,0.00019356,3]
[364346224,1749076237651,-440.0,0.00019365,2]
[364346226,1749076237660,-440.0,0.00019365,2]
[364346228,1749076237670,-440.0,0.00019366,2]
[364346230,1749076237679,-440.0,0.00019366,2]
[364346232,1749076237688,-1239.94,0.00019366,2]
[364346234,1749076237698,-440.0,0.00019366,2]
[364346236,1749076237707,-420.0,0.0001952,2]
[364346238,1749076237717,-440.0,0.00019533,2]
[364346240,1749076237727,-626.75,0.00019533,2]
[364346242,1749076237736,-458.16,0.00019536,2]
[364346244,1749076237747,-797.89,0.00019536,2]
[364346246,1749076237756,-440.0,0.00019536,2]
[364346248,1749076237766,-643.23,0.00019536,2]
[364346250,1749076237775,-556.98,0.00019536,2]
[364346252,1749076237785,-985.04,0.00019537,2]
[364346254,1749076237794,-440.0,0.00019537,2]
[364346256,1749076237804,-456.11,0.00019539,2]
[364346258,1749076237814,-863.56,0.00019541,2]
[364346260,1749076237824,-440.0,0.00019541,2]
[364346262,1749076237834,-468.0,0.00019541,2]
[364346264,1749076237844,-1459.99587772,0.0001959,2]
[364346266,1749076237854,-452.16,0.00019639,2]
[364346268,1749076237864,-440.0,0.00019639,2]
[364346270,1749076237873,-491.08,0.0001964,2]
[364346273,1749076237883,-440.0,0.0001964,2]
[364346276,1749076237892,-1239.94,0.0001964,2]
[364346279,1749076237902,-440.0,0.0001964,2]
[364346282,1749076237911,-450.0,0.00019726,2]
[364346285,1749076237921,-370.0,0.00019726,2]
[364346287,1749076237931,-440.0,0.00019807,2]
[364346289,1749076237940,-626.75,0.00019807,2]
[364346291,1749076237950,-458.16,0.0001981,2]
[364346293,1749076237960,-797.89,0.0001981,2]
[364346295,1749076237969,-440.0,0.0001981,2]
[364346297,1749076237979,-643.23,0.0001981,2]
[364346299,1749076237988,-985.04,0.00019811,2]
[364346301,1749076237998,-440.0,0.00019811,2]
[364346303,1749076238007,-456.11,0.00019813,2]
[364346305,1749076238017,-863.56,0.00019815,2]
[364346307,1749076238026,-440.0,0.00019815,2]
[364346309,1749076238035,-468.0,0.00019815,2]
[364346311,1749076238044,-1459.99587772,0.00019831,2]
[364346313,1749076238054,-227.74,0.00019841,2]
[364346315,1749076238063,-440.0,0.00019913,2]
[364346317,1749076238072,-440.0,0.00019914,2]
[364346319,1749076238081,-1239.94,0.00019914,2]
[364346321,1749076238091,-440.0,0.00019914,2]
[364346323,1749076238100,-12744.86256404,0.0002,2]
[364346325,1749076238111,-274.8699357,0.0002,2]
[364346335,1749076238194,249.14,0.00025,120]
[364346344,1749076238269,-32724.81547845,0.0002,2]
[364346346,1749076238278,-500.67504604,0.0002,2]
[364346348,1749076238287,-1700.0,0.00020068,2]
[364346350,1749076238296,-1459.99587772,0.00020072,2]
[364346352,1749076238306,-440.0,0.00020081,2]
[364346354,1749076238315,-626.75,0.00020081,2]
[364346356,1749076238325,-458.16,0.00020084,2]
[364346358,1749076238334,-797.89,0.00020084,2]
[364346360,1749076238343,-440.0,0.00020084,2]
[364346362,1749076238353,-643.23,0.00020084,2]
[364346364,1749076238362,-985.04,0.00020085,2]
[364346366,1749076238371,-440.0,0.00020085,2]
[364346368,1749076238381,-456.11,0.00020087,2]
[364346370,1749076238390,-863.56,0.00020089,2]
[364346372,1749076238399,-440.0,0.00020089,2]
[364346374,1749076238408,-468.0,0.00020089,2]
[364346376,1749076238418,-160.0,0.00020182,2]
[364346378,1749076238427,-423.69433488,0.00020182,2]
[364346380,1749076238436,-842.5625,0.00020182,2]
[364346382,1749076238445,-160.0,0.00020182,2]
[364346384,1749076238454,-212.90465545,0.00020182,2]
[364346386,1749076238463,-440.0,0.00020187,2]
[364346388,1749076238472,-300.634142,0.00020187,2]
[364346390,1749076238483,-440.0,0.00020188,2]
[364346392,1749076238494,-1239.94,0.00020188,2]
[364346394,1749076238503,-440.0,0.00020188,2]
[364346396,1749076238512,-166.0,0.00020274,2]
[364346398,1749076238521,-1459.99587772,0.00020314,3]
[364346400,1749076238532,-435.38077918,0.00020355,2]
[364346402,1749076238542,-626.75,0.00020355,2]
[364346404,1749076238552,-458.16,0.00020358,2]
[364346406,1749076238563,-797.89,0.00020358,2]
[364346408,1749076238573,-440.0,0.00020358,2]
[364346410,1749076238582,-643.23,0.00020358,2]
[364346412,1749076238591,-985.04,0.00020359,2]
[364346414,1749076238600,-514.98442385,0.00020359,2]
[364346416,1749076238610,-456.11,0.00020361,2]
[364346418,1749076238620,-863.56,0.00020363,2]
[364346420,1749076238629,-440.0,0.00020363,2]
[364346422,1749076238638,-468.0,0.00020363,2]
[364346424,1749076238648,-278.71012717,0.00020398,2]
[364346426,1749076238658,-440.0,0.00020461,2]
[364346428,1749076238667,-440.0,0.00020462,2]
[364346430,1749076238680,-1239.94,0.00020462,2]
[364346432,1749076238689,-440.0,0.00020462,2]
[364346434,1749076238699,-500.0,0.00020547,2]
[364346436,1749076238709,-1459.99587772,0.00020555,3]
[364346438,1749076238718,-931.22,0.000206,2]
[364346440,1749076238728,-657.83,0.000206,2]
[364346442,1749076238738,-626.75,0.00020629,2]
[364346444,1749076238747,-458.16,0.00020632,2]
[364346446,1749076238757,-797.89,0.00020632,2]
[364346448,1749076238767,-271.34903056,0.00020632,2]
[364346450,1749076238777,-643.23,0.00020632,2]
[364346452,1749076238786,-985.04,0.00020633,2]
[364346454,1749076238795,-456.11,0.00020635,2]
[364346456,1749076238805,-863.56,0.00020637,2]
[364346458,1749076238815,-440.0,0.00020637,2]
[364346460,1749076238824,-468.0,0.00020637,2]
[364346462,1749076238833,-440.0,0.00020735,2]
[364346464,1749076238843,-440.0,0.00020736,2]
[364346466,1749076238852,-1239.94,0.00020736,2]
[364346468,1749076238862,-440.0,0.00020736,2]
[364346470,1749076238871,-1459.99587772,0.00020797,4]
[364346472,1749076238880,-626.75,0.00020903,2]
[364346474,1749076238889,-458.16,0.00020906,2]
[364346476,1749076238898,-797.89,0.00020906,2]
[364346478,1749076238908,-643.23,0.00020906,2]
[364346479,1749076238917,-985.04,0.00020907,2]
[364346482,1749076238927,-456.11,0.00020909,2]
[364346483,1749076238936,-863.56,0.00020911,2]
[364346485,1749076238945,-440.0,0.00020911,2]
[364346487,1749076238955,-468.0,0.00020911,2]
[364346489,1749076238965,-440.0,0.00021009,2]
[364346491,1749076238974,-440.0,0.0002101,2]
[364346493,1749076238983,-1239.94,0.0002101,2]
[364346495,1749076238992,-440.0,0.0002101,2]
[364346497,1749076239002,-1459.99587772,0.00021038,4]
[364346499,1749076239012,-1700.0,0.00021164,2]
[364346501,1749076239021,-626.75,0.00021177,2]
[364346503,1749076239030,-458.16,0.0002118,2]
[364346505,1749076239039,-797.89,0.0002118,2]
[364346507,1749076239048,-643.23,0.0002118,2]
[364346509,1749076239058,-985.04,0.00021181,2]
[364346511,1749076239067,-456.11,0.00021183,2]
[364346513,1749076239076,-863.56,0.00021185,2]
[364346515,1749076239085,-440.0,0.00021185,2]
[364346517,1749076239094,-468.0,0.00021185,2]
[364346519,1749076239103,-250.0,0.00021195,2]
[364346521,1749076239112,-1459.99587772,0.00021279,5]
[364346523,1749076239120,-440.0,0.00021283,2]
[364346525,1749076239129,-440.0,0.00021284,2]
[364346527,1749076239139,-1239.94,0.00021284,2]
[364346529,1749076239148,-440.0,0.00021284,2]
[364346531,1749076239157,-587.0,0.00021301,2]
[364346533,1749076239166,-626.75,0.00021451,2]
[364346535,1749076239175,-458.16,0.00021454,2]
[364346537,1749076239184,-797.89,0.00021454,2]
[364346539,1749076239193,-643.23,0.00021454,2]
[364346541,1749076239202,-985.04,0.00021455,2]
[364346543,1749076239212,-456.11,0.00021457,2]
[364346545,1749076239221,-863.56,0.00021459,2]
[364346547,1749076239230,-440.0,0.00021459,2]
[364346549,1749076239239,-468.0,0.00021459,2]
[364346551,1749076239248,-1459.99587772,0.00021521,5]
[364346552,1749076239257,-255.3,0.00021556,2]
[364346554,1749076239266,-440.0,0.00021558,2]
[364346556,1749076239275,-1239.94,0.00021558,2]
[364346558,1749076239285,-376.9916146,0.00021558,2]
[364346560,1749076239294,-278.71012717,0.00021649,2]
[364346562,1749076239304,-626.75,0.00021725,2]
[364346564,1749076239313,-458.16,0.00021728,2]
[364346566,1749076239323,-797.89,0.00021728,2]
[364346568,1749076239332,-643.23,0.00021728,2]
[364346570,1749076239341,-985.04,0.00021729,2]
[364346572,1749076239350,-456.11,0.00021731,2]
[364346574,1749076239361,-138599.45165,0.00021732,2]
[364346576,1749076239370,-863.56,0.00021733,2]
[364346578,1749076239380,-440.0,0.00021733,2]
[364346581,1749076239390,-468.0,0.00021733,2]
[364346582,1749076239399,-1459.99587772,0.00021762,5]
[364346585,1749076239409,-440.0,0.00021832,2]
[364346586,1749076239418,-1239.94,0.00021832,2]
[364346588,1749076239428,-500.0,0.00021917,2]
[364346590,1749076239438,-500.0,0.00021917,2]
[364346592,1749076239449,-500.0,0.00021917,2]
[364346594,1749076239458,-581.58,0.00021917,2]
[364346596,1749076239467,-626.75,0.00021999,2]
[364346598,1749076239476,-3000.0,0.00022,2]
[364346600,1749076239488,-171.0,0.00022,2]
[364346602,1749076239498,-151.0,0.00022,2]
[364346604,1749076239507,-458.16,0.00022002,2]
[364346607,1749076239519,-797.89,0.00022002,2]
[364346609,1749076239530,-643.23,0.00022002,2]
[364346612,1749076239635,-985.04,0.00022003,2]
[364346614,1749076239646,-1459.99587772,0.00022003,6]
[364346616,1749076239657,-456.11,0.00022005,2]
[364346618,1749076239666,-863.56,0.00022007,2]
[364346620,1749076239676,-440.0,0.00022007,2]
[364346622,1749076239685,-468.0,0.00022007,2]
[364346624,1749076239695,-3000.0,0.0002201,2]
[364346626,1749076239705,-3000.0,0.0002202,2]
[364346628,1749076239714,-3000.0,0.0002203,2]
[364346630,1749076239725,-3000.0,0.0002204,2]
[364346632,1749076239734,-3000.0,0.0002205,2]
[364346634,1749076239744,-3000.0,0.0002206,2]
[364346636,1749076239753,-3000.0,0.0002207,2]
[364346638,1749076239762,-3000.0,0.0002208,2]
[364346641,1749076239772,-3000.0,0.0002209,2]
[364346642,1749076239782,-3000.0,0.000221,2]
[364346644,1749076239791,-440.0,0.00022106,2]
[364346647,1749076239802,-1239.94,0.00022106,2]
[364346649,1749076239811,-3000.0,0.0002211,2]
[364346651,1749076239820,-3000.0,0.0002212,2]
[364346653,1749076239829,-3000.0,0.0002213,2]
[364346654,1749076239838,-3000.0,0.0002214,2]
[364346656,1749076239848,-3000.0,0.0002215,2]
[364346658,1749076239857,-3000.0,0.0002216,2]
[364346660,1749076239867,-3000.0,0.0002217,2]
[364346662,1749076239875,-3000.0,0.0002218,2]
[364346664,1749076239885,-3000.0,0.0002219,2]
[364346667,1749076239895,-2380.45724693,0.00022198,2]
[364346669,1749076239905,-3000.0,0.000222,2]
[364346670,1749076239914,-931.22,0.000222,7]
[364346673,1749076239924,-3000.0,0.0002221,2]
[364346675,1749076239935,-3000.0,0.0002222,2]
[364346677,1749076239944,-3000.0,0.0002223,2]
[364346679,1749076239954,-3000.0,0.0002224,2]
[364346681,1749076239963,-1459.99587772,0.00022245,6]
[364346683,1749076239972,-3000.0,0.0002225,2]
[364346685,1749076239981,-3000.0,0.0002226,2]
[364346687,1749076239991,-1700.0,0.0002226,2]
[364346689,1749076240000,-3000.0,0.0002227,2]
[364346691,1749076240009,-626.75,0.00022273,2]
[364346692,1749076240019,-458.16,0.00022276,2]
[364346695,1749076240028,-797.89,0.00022276,2]
[364346696,1749076240038,-985.04,0.00022276,2]
[364346699,1749076240048,-643.23,0.00022276,2]
[364346701,1749076240059,-456.11,0.00022279,2]
[364346703,1749076240069,-3000.0,0.0002228,2]
[364346705,1749076240078,-863.56,0.00022281,2]
[364346707,1749076240088,-440.0,0.00022281,2]
[364346709,1749076240098,-468.0,0.00022281,2]
[364346711,1749076240108,-3000.0,0.0002229,2]
[364346713,1749076240119,-3000.0,0.000223,2]
[364346715,1749076240128,-657.83,0.000223,7]
[364346716,1749076240139,-3000.0,0.0002231,2]
[364346718,1749076240148,-3000.0,0.0002232,2]
[364346720,1749076240159,-3803.413038,0.0002233,2]
[364346722,1749076240168,-440.0,0.0002238,2]
[364346724,1749076240178,-1239.94,0.0002238,2]
[364346726,1749076240187,-500.0,0.00022406,2]
[364346728,1749076240196,-500.0,0.00022433,2]
[364346729,1749076240206,-500.0,0.00022461,2]
[364346731,1749076240215,-500.0,0.00022465,2]
[364346733,1749076240226,-1459.99587772,0.00022486,7]
[364346735,1749076240235,-500.0,0.00022488,2]
[364346737,1749076240244,-500.0,0.00022516,2]
[364346739,1749076240254,-500.0,0.00022543,2]
[364346741,1749076240263,-626.75,0.00022547,2]
[364346743,1749076240272,-458.16,0.0002255,2]
[364346745,1749076240282,-797.89,0.0002255,2]
[364346747,1749076240292,-985.04,0.0002255,2]
[364346749,1749076240303,-643.23,0.0002255,2]
[364346751,1749076240313,-456.11,0.00022553,2]
[364346753,1749076240322,-863.56,0.00022555,2]
[364346755,1749076240331,-440.0,0.00022555,2]
[364346757,1749076240340,-468.0,0.00022555,2]
[364346759,1749076240350,-264.02475656,0.0002257,2]
[364346761,1749076240359,-440.0,0.00022654,2]
[364346763,1749076240368,-1239.94,0.00022654,2]
[364346765,1749076240378,-1459.99587772,0.00022728,7]
[364346767,1749076240387,-207.4,0.00022758,2]
[364346769,1749076240396,-500.0,0.00022758,2]
[364346771,1749076240405,-500.0,0.00022758,2]
[364346773,1749076240415,-500.0,0.00022758,2]
[364346776,1749076240434,-500.0,0.00022758,2]
[364346778,1749076240445,-500.0,0.00022758,2]
[364346780,1749076240455,-500.0,0.00022758,2]
[364346782,1749076240465,-500.0,0.00022758,2]
[364346784,1749076240475,-500.0,0.00022758,2]
[364346786,1749076240491,-500.0,0.00022758,2]
[364346788,1749076240501,-500.0,0.00022758,2]
[364346790,1749076240511,-500.0,0.00022758,2]